fUSD/lending_fUSD_20250611
["ID","MTS","AMOUNT","RATE_DAILY","PERIOD"]
[365425022,1749664246511,-490.0,0.00019342,2]
[365425023,1749664246523,-490.0,0.00019342,2]
[365425024,1749664246533,-490.0,0.00019342,2]
[365425025,1749664246543,-490.0,0.00019342,2]
[365425026,1749664246553,-490.0,0.00019342,2]
[365425027,1749664246564,-497.51,0.00019342,2]
[365425028,1749664246573,-689.63,0.00019342,2]
[365425029,1749664246583,-490.0,0.00019342,2]
[365425030,1749664246592,-490.0,0.00019342,2]
[365425031,1749664246604,-865.21,0.00019342,2]
[365425032,1749664246613,-480.0,0.00019342,2]
[365425033,1749664246622,-1292.01,0.00019342,2]
[365425034,1749664246631,-490.0,0.00019342,2]
[365425035,1749664246641,-490.0,0.00019342,2]
[365425036,1749664246650,-538.16,0.00019342,2]
[365425037,1749664246659,-490.0,0.00019342,2]
[365425038,1749664246668,-490.0,0.00019342,2]
[365425039,1749664246677,-490.0,0.00019342,2]
[365425040,1749664246686,-581.41,0.00019342,2]
[365425041,1749664246696,-538.04,0.00019342,2]
[365425042,1749664246705,-630.31,0.00019342,2]
[365425043,1749664246714,-490.0,0.00019342,2]
[365425044,1749664246723,-619.62,0.00019342,2]
[365425045,1749664246732,-490.0,0.00019342,2]
[365425046,1749664246742,-545.79,0.00019342,2]
[365425047,1749664246753,-5455.39,0.00019342,2]
[365425048,1749664246762,-490.0,0.00019342,2]
[365425049,1749664246771,-578.51,0.00019342,2]
[365425050,1749664246780,-490.0,0.00019342,2]
[365425051,1749664246790,-554.71650761,0.00019342,2]
[365425052,1749664246799,-869.31,0.00019342,2]
[365425053,1749664246808,-7091.69,0.00019342,2]
[365425054,1749664246818,-1578.74,0.00019342,2]
[365425055,1749664246827,-490.0,0.00019342,2]
[365425056,1749664246836,-490.0,0.00019342,2]
[365425057,1749664246846,-490.0,0.00019342,2]
[365425058,1749664246855,-490.0,0.00019342,2]
[365425059,1749664246865,-819.06,0.00019342,2]
[365425060,1749664246874,-519.97,0.00019342,2]
[365425061,1749664246883,-490.0,0.00019342,2]
[365425062,1749664246893,-1328.38,0.00019342,2]
[365425063,1749664246902,-463.93895472,0.00019342,2]
[365425064,1749664246911,-1017.44,0.00019342,2]
[365425065,1749664246921,-490.0,0.00019342,2]
[365425066,1749664246930,-490.0,0.00019342,2]
[365425067,1749664246939,-638.23,0.00019342,2]
[365425068,1749664246949,-490.0,0.00019342,2]
[365425069,1749664246958,-490.0,0.00019342,2]
[365425070,1749664246968,-153.72,0.00019342,2]
[365425071,1749664246977,-853.47,0.00019342,2]
[365425072,1749664246986,-1459.54,0.00019342,2]
[365425073,1749664246995,-509.78,0.00019342,2]
[365425074,1749664247004,-1668.79,0.00019342,2]
[365425075,1749664247014,-956.22,0.00019342,2]
[365425076,1749664247023,-563.11,0.00019342,2]
[365425077,1749664247032,-768.89,0.00019342,2]
[365425078,1749664247041,-490.0,0.00019342,2]
[365425079,1749664247051,-556.57,0.00019342,2]
[365425080,1749664247060,-782.98,0.00019342,2]
[365425081,1749664247069,-490.0,0.00019342,2]
[365425082,1749664247079,-490.0,0.00019342,2]
[365425083,1749664247088,-202.41,0.00019342,2]
[365425084,1749664247098,-490.0,0.00019342,2]
[365425085,1749664247107,-490.0,0.00019342,2]
[365425086,1749664247117,-3243.25,0.00019342,2]
[365425087,1749664247126,-490.0,0.00019342,2]
[365425088,1749664247135,-534.84,0.00019342,2]
[365425089,1749664247145,-490.0,0.00019342,2]
[365425090,1749664247154,-490.0,0.00019342,2]
[365425091,1749664247163,-622.95,0.00019342,2]
[365425092,1749664247173,-490.0,0.00019342,2]
[365425093,1749664247182,-490.0,0.00019342,2]
[365425094,1749664247192,-836.19,0.00019342,2]
[365425095,1749664247201,-1251.96,0.00019342,2]
[365425096,1749664247211,-779.51,0.00019342,2]
[365425097,1749664247220,-2676.7,0.00019342,2]
[365425098,1749664247230,-490.0,0.00019342,2]
[365425099,1749664247239,-536.75,0.00019342,2]
[365425100,1749664247249,-490.0,0.00019342,2]
[365425101,1749664247259,-1108.13,0.00019342,2]
[365425102,1749664247268,-711.18,0.00019342,2]
[365425103,1749664247277,-490.0,0.00019342,2]
[365425104,1749664247287,-490.0,0.00019342,2]
[365425105,1749664247297,-1699.0,0.00019342,2]
[365425106,1749664247307,-490.0,0.00019342,2]
[365425107,1749664247316,-490.0,0.00019342,2]
[365425108,1749664247326,-757.06,0.00019342,2]
[365425109,1749664247335,-490.0,0.00019342,2]
[365425110,1749664247345,-609.19,0.00019342,2]
[365425111,1749664247354,-490.0,0.00019342,2]
[365425112,1749664247365,-490.0,0.00019342,2]
[365425113,1749664247375,-2133.29,0.00019342,2]
[365425114,1749664247384,-266.08,0.00019342,2]
[365425115,1749664247393,-490.0,0.00019342,2]
[365425116,1749664247403,-490.0,0.00019342,2]
[365425117,1749664247412,-557.38,0.00019342,2]
[365425118,1749664247421,-490.0,0.00019342,2]
[365425119,1749664247430,-490.0,0.00019342,2]
[365425120,1749664247439,-490.0,0.00019342,2]
[365425121,1749664247449,-490.0,0.00019342,2]
[365425122,1749664247458,-490.0,0.00019342,2]
[365425123,1749664247467,-490.0,0.00019342,2]
[365425124,1749664247477,-255.28717574,0.00019342,2]
[365425125,1749664247486,-490.0,0.00019342,2]
[365425126,1749664247497,-490.0,0.00019342,2]
[365425127,1749664247506,-892.62,0.00019342,2]
[365425128,1749664247515,-490.0,0.00019342,2]
[365425129,1749664247529,-251.91,0.00019342,2]
[365425130,1749664247538,-538.914135,0.00019342,2]
[365425131,1749664247547,-480.0,0.00019342,2]
[365425132,1749664247557,-631.05,0.00019342,2]
[365425133,1749664247569,-490.0,0.00019342,2]
[365425134,1749664247579,-799.7,0.00019342,2]
[365425135,1749664247590,-1515.41,0.00019342,2]
[365425136,1749664247600,-616.92,0.00019342,2]
[365425137,1749664247610,-490.0,0.00019342,2]
[365425138,1749664247620,-490.0,0.00019342,2]
[365425139,1749664247629,-488.43668508,0.00019342,2]
[365425140,1749664247639,-490.0,0.00019342,2]
[365425141,1749664247648,-854.08,0.00019342,2]
[365425142,1749664247658,-351.24,0.00019342,2]
[365425143,1749664247667,-490.0,0.00019342,2]
[365425144,1749664247676,-490.0,0.00019342,2]
[365425145,1749664247686,-490.0,0.00019342,2]
[365425146,1749664247695,-490.0,0.00019342,2]
[365425147,1749664247705,-490.0,0.00019342,2]
[365425148,1749664247714,-541.70927701,0.00019348,2]
[365425149,1749664247723,-1699.12219315,0.00019352,2]
[365425150,1749664247734,-207.23714623,0.00019352,2]
[365425151,1749664247746,-156.672943,0.00019372,2]
[365425152,1749664247755,-541.70927701,0.00019383,2]
[365425153,1749664247764,-200.0,0.00019392,2]
[365425154,1749664247773,-2000.0,0.00019392,2]
[365425155,1749664247782,-200.0,0.00019392,2]
[365425156,1749664247792,-200.0,0.00019392,2]
[365425157,1749664247801,-300.0,0.00019392,2]
[365425158,1749664247810,-200.0,0.00019392,2]
[365425159,1749664247819,-1000.0,0.000194,2]
[365425160,1749664247828,-541.70927701,0.00019417,2]
[365425161,1749664247837,-156.672943,0.0001943,2]
[365425162,1749664247847,-300.0,0.00019438,2]
[365425163,1749664247856,-300.0,0.00019438,2]
[365425164,1749664247865,-1699.12219315,0.00019443,2]
[365425165,1749664247874,-207.23714623,0.00019443,2]
[365425166,1749664247884,-541.70927701,0.00019452,2]
[365425167,1749664247893,-541.70927701,0.00019486,2]
[365425168,1749664247902,-156.672943,0.00019489,2]
[365425169,1749664247912,-35000.0,0.000195,2]
[365425170,1749664247923,-151.0,0.000195,7]
[365425171,1749664247933,-151.0,0.000195,7]
[365425172,1749664247943,-151.0,0.000195,7]
[365425173,1749664247952,-151.0,0.000195,7]
[365425174,1749664247961,-251.80014296,0.000195,7]
[365425175,1749664247970,-1000.0,0.000195,2]
[365425176,1749664247979,-500.0,0.00019505,2]
[365425177,1749664247988,-168.24,0.00019505,2]
[365425178,1749664247998,-500.0,0.00019505,2]
[365425179,1749664248007,-1211.37,0.00019505,2]
[365425180,1749664248016,-1633.38,0.00019505,2]
[365425181,1749664248025,-490.0,0.00019506,2]
[365425182,1749664248034,-490.0,0.00019506,2]
[365425183,1749664248044,-490.0,0.00019506,2]
[365425184,1749664248053,-490.0,0.00019506,2]
[365425185,1749664248062,-490.0,0.00019506,2]
[365425186,1749664248071,-490.0,0.00019506,2]
[365425187,1749664248081,-490.0,0.00019506,2]
[365425188,1749664248090,-490.0,0.00019506,2]
[365425189,1749664248100,-490.0,0.00019506,2]
[365425190,1749664248109,-490.0,0.00019506,2]
[365425191,1749664248119,-490.0,0.00019506,2]
[365425192,1749664248128,-490.0,0.00019506,2]
[365425193,1749664248138,-490.0,0.00019506,2]
[365425194,1749664248147,-490.0,0.00019506,2]
[365425195,1749664248157,-490.0,0.00019506,2]
[365425196,1749664248166,-490.0,0.00019506,2]
[365425197,1749664248176,-316.63465456,0.00019506,2]
[365425198,1749664248185,-490.0,0.00019506,2]
[365425199,1749664248195,-404.16,0.00019506,2]
[365425200,1749664248205,-490.0,0.00019506,2]
[365425201,1749664248215,-490.0,0.00019506,2]
[365425202,1749664248224,-490.0,0.00019506,2]
[365425203,1749664248235,-490.0,0.00019506,2]
[365425204,1749664248246,-490.0,0.00019506,2]
[365425205,1749664248256,-490.0,0.00019506,2]
[365425206,1749664248266,-490.0,0.00019506,2]
[365425207,1749664248276,-490.0,0.00019506,2]
[365425208,1749664248286,-490.0,0.00019506,2]
[365425209,1749664248296,-474.07897597,0.00019506,2]
[365425210,1749664248305,-540.49,0.00019506,2]
[365425211,1749664248315,-490.0,0.00019506,2]
[365425212,1749664248325,-490.0,0.00019506,2]
[365425213,1749664248334,-490.0,0.00019506,2]
[365425214,1749664248344,-490.0,0.00019506,2]
[365425215,1749664248353,-490.0,0.00019506,2]
[365425216,1749664248363,-490.0,0.00019506,2]
[365425217,1749664248372,-345.47746226,0.00019506,2]
[365425218,1749664248382,-198.06789518,0.00019506,2]
[365425219,1749664248392,-490.0,0.00019506,2]
[365425220,1749664248401,-490.0,0.00019506,2]
[365425221,1749664248411,-490.0,0.00019506,2]
[365425222,1749664248421,-347.72139728,0.00019506,2]
[365425223,1749664248430,-490.0,0.00019506,2]
[365425224,1749664248440,-490.0,0.00019506,2]
[365425225,1749664248449,-490.0,0.00019506,2]
[365425226,1749664248459,-813.83,0.00019506,2]
[365425227,1749664248468,-490.0,0.00019506,2]
[365425228,1749664248478,-490.0,0.00019506,2]
[365425229,1749664248487,-512.56,0.00019506,2]
[365425230,1749664248496,-627.11,0.00019506,2]
[365425231,1749664248562,-607.25,0.00019506,2]
[365425232,1749664248572,-490.0,0.00019506,2]
[365425233,1749664248581,-490.0,0.00019506,2]
[365425234,1749664248590,-490.0,0.00019506,2]
[365425235,1749664248602,-503.81,0.00019506,2]
[365425236,1749664248611,-490.0,0.00019506,2]
[365425237,1749664248621,-517.16688342,0.00019506,2]
[365425238,1749664248630,-490.0,0.00019506,2]
[365425239,1749664248639,-490.0,0.00019506,2]
[365425240,1749664248648,-490.0,0.00019506,2]
[365425241,1749664248658,-490.0,0.00019506,2]
[365425242,1749664248667,-490.0,0.00019506,2]
[365425243,1749664248676,-490.0,0.00019506,2]
[365425244,1749664248685,-609.93930394,0.00019506,2]
[365425245,1749664248695,-320.34278752,0.00019506,2]
[365425246,1749664248704,-490.0,0.00019506,2]
[365425247,1749664248713,-581.89484058,0.00019506,2]
[365425248,1749664248723,-350.38995769,0.00019506,2]
[365425249,1749664248732,-531.47,0.00019506,2]
[365425250,1749664248741,-816.42,0.00019506,2]
[365425251,1749664248752,-490.0,0.00019506,2]
[365425252,1749664248762,-490.0,0.00019506,2]
[365425253,1749664248771,-490.0,0.00019506,2]
[365425254,1749664248781,-490.0,0.00019506,2]
[365425255,1749664248790,-241.84,0.00019506,2]
[365425256,1749664248799,-490.0,0.00019506,2]
[365425257,1749664248809,-490.0,0.00019506,2]
[365425258,1749664248818,-850.55,0.00019506,2]
[365425259,1749664248827,-490.0,0.00019506,2]
[365425260,1749664248837,-490.0,0.00019506,2]
[365425261,1749664248846,-490.0,0.00019506,2]
[365425262,1749664248856,-490.0,0.00019506,2]
[365425263,1749664248865,-490.0,0.00019506,2]
[365425264,1749664248874,-600.11,0.00019506,2]
[365425265,1749664248883,-666.25,0.00019506,2]
[365425266,1749664248892,-490.0,0.00019506,2]
[365425267,1749664248901,-490.0,0.00019506,2]
[365425268,1749664248910,-490.0,0.00019506,2]
[365425269,1749664248919,-844.13,0.00019506,2]
[365425270,1749664248929,-490.0,0.00019506,2]
[365425271,1749664248938,-596.21,0.00019506,2]
[365425272,1749664248947,-354.04,0.00019506,2]
[365425273,1749664248956,-490.0,0.00019506,2]
[365425274,1749664248966,-490.0,0.00019506,2]
[365425275,1749664248975,-490.0,0.00019506,2]
[365425276,1749664248984,-490.0,0.00019506,2]
[365425277,1749664248993,-490.0,0.00019506,2]
[365425278,1749664249003,-723.73,0.00019506,2]
[365425279,1749664249012,-490.0,0.00019506,2]
[365425280,1749664249021,-612.74,0.00019506,2]
[365425281,1749664249030,-490.0,0.00019506,2]
[365425282,1749664249039,-493.54,0.00019506,2]
[365425283,1749664249048,-490.0,0.00019506,2]
[365425284,1749664249057,-414.07,0.00019506,2]
[365425285,1749664249066,-490.0,0.00019506,2]
[365425286,1749664249075,-490.0,0.00019506,2]
[365425287,1749664249084,-490.0,0.00019506,2]
[365425288,1749664249094,-490.0,0.00019506,2]
[365425289,1749664249103,-843.72,0.00019506,2]
[365425290,1749664249112,-490.0,0.00019506,2]
[365425291,1749664249122,-532.28,0.00019506,2]
[365425292,1749664249131,-490.0,0.00019506,2]
[365425293,1749664249140,-490.0,0.00019506,2]
[365425294,1749664249150,-666.7,0.00019506,2]
[365425295,1749664249159,-500.98131326,0.00019506,2]
[365425296,1749664249168,-490.0,0.00019506,2]
[365425297,1749664249177,-490.0,0.00019506,2]
[365425298,1749664249186,-590.86,0.00019506,2]
[365425299,1749664249197,-490.0,0.00019506,2]
[365425300,1749664249206,-490.0,0.00019506,2]
[365425301,1749664249216,-490.0,0.00019506,2]
[365425302,1749664249226,-697.59,0.00019506,2]
[365425303,1749664249235,-490.0,0.00019506,2]
[365425304,1749664249246,-358.0,0.00019506,2]
[365425305,1749664249255,-502.18,0.00019506,2]
[365425306,1749664249266,-490.0,0.00019506,2]
[365425307,1749664249275,-490.0,0.00019506,2]
[365425308,1749664249284,-499.63,0.00019506,2]
[365425309,1749664249293,-490.0,0.00019506,2]
[365425310,1749664249303,-490.0,0.00019506,2]
[365425311,1749664249312,-490.0,0.00019506,2]
[365425312,1749664249321,-490.0,0.00019506,2]
[365425313,1749664249330,-490.0,0.00019506,2]
[365425314,1749664249339,-506.21,0.00019506,2]
[365425315,1749664249348,-1036.53,0.00019506,2]
[365425316,1749664249358,-490.0,0.00019506,2]
[365425317,1749664249367,-490.0,0.00019506,2]
[365425318,1749664249376,-490.19,0.00019506,2]
[365425319,1749664249386,-490.0,0.00019506,2]
[365425320,1749664249394,-575.78,0.00019506,2]
[365425321,1749664249404,-511.63,0.00019506,2]
[365425322,1749664249413,-490.0,0.00019506,2]
[365425323,1749664249423,-490.0,0.00019506,2]
[365425324,1749664249432,-490.0,0.00019506,2]
[365425325,1749664249441,-490.0,0.00019506,2]
[365425326,1749664249450,-645.12,0.00019506,2]
[365425327,1749664249459,-490.0,0.00019506,2]
[365425328,1749664249469,-737.53,0.00019506,2]
[365425329,1749664249478,-490.0,0.00019506,2]
[365425330,1749664249488,-490.0,0.00019506,2]
[365425331,1749664249498,-818.95,0.00019506,2]
[365425332,1749664249508,-329.91,0.00019506,2]
[365425333,1749664249520,-490.0,0.00019506,2]
[365425334,1749664249530,-490.0,0.00019506,2]
[365425335,1749664249540,-490.0,0.00019506,2]
[365425336,1749664249549,-519.18,0.00019506,2]
[365425337,1749664249558,-669.15,0.00019506,2]
[365425338,1749664249567,-490.0,0.00019506,2]
[365425339,1749664249575,-250.0,0.00019506,2]
[365425340,1749664249584,-892.72,0.00019506,2]
[365425341,1749664249595,-744.03,0.00019506,2]
[365425342,1749664249605,-644.81,0.00019506,2]
[365425343,1749664249614,-490.0,0.00019506,2]
[365425344,1749664249624,-1038.37,0.00019506,2]
[365425345,1749664249633,-496.26,0.00019506,2]
[365425346,1749664249641,-739.69,0.00019506,2]
[365425347,1749664249651,-1766.35,0.00019506,2]
[365425348,1749664249659,-3742.92,0.00019506,2]
[365425349,1749664249668,-490.0,0.00019506,2]
[365425350,1749664249677,-710.43,0.00019506,2]
[365425351,1749664249686,-627.29,0.00019506,2]
[365425352,1749664249695,-1941.66,0.00019506,2]
[365425353,1749664249704,-490.0,0.00019506,2]
[365425354,1749664249713,-545.28,0.00019506,2]
[365425355,1749664249722,-490.0,0.00019506,2]
[365425356,1749664249731,-1099.76,0.00019506,2]
[365425357,1749664249740,-490.0,0.00019506,2]
[365425358,1749664249751,-490.0,0.00019506,2]
[365425359,1749664249760,-2859.5,0.00019506,2]
[365425360,1749664249770,-1000.0,0.00019506,2]
[365425361,1749664249780,-810.9,0.00019506,2]
[365425362,1749664249789,-490.0,0.00019506,2]
[365425363,1749664249798,-591.58,0.00019506,2]
[365425364,1749664249807,-490.0,0.00019506,2]
[365425365,1749664249817,-490.0,0.00019506,2]
[365425366,1749664249826,-490.6,0.00019506,2]
[365425367,1749664249835,-6274.88,0.00019506,2]
[365425368,1749664249845,-490.0,0.00019506,2]
[365425369,1749664249855,-765.17,0.00019506,2]
[365425370,1749664249864,-490.0,0.00019506,2]
[365425371,1749664249873,-490.0,0.00019506,2]
[365425372,1749664249882,-967.2,0.00019506,2]
[365425373,1749664249893,-490.0,0.00019506,2]
[365425374,1749664249903,-2665.06,0.00019506,2]
[365425375,1749664249912,-490.0,0.00019506,2]
[365425376,1749664249922,-583.92,0.00019506,2]
[365425377,1749664249931,-490.0,0.00019506,2]
[365425378,1749664249940,-751.65,0.00019506,2]
[365425379,1749664249949,-887.68,0.00019506,2]
[365425380,1749664249959,-490.0,0.00019506,2]
[365425381,1749664249968,-490.0,0.00019506,2]
[365425382,1749664249977,-490.0,0.00019506,2]
[365425383,1749664249987,-613.65,0.00019506,2]
[365425384,1749664249996,-508.01,0.00019506,2]
[365425385,1749664250006,-4954.42,0.00019506,2]
[365425386,1749664250015,-490.0,0.00019506,2]
[365425387,1749664250024,-1793.01,0.00019506,2]
[365425388,1749664250034,-490.0,0.00019506,2]
[365425389,1749664250043,-681.26,0.00019506,2]
[365425390,1749664250052,-706.34,0.00019506,2]
[365425391,1749664250061,-490.0,0.00019506,2]
[365425392,1749664250071,-490.0,0.00019506,2]
[365425393,1749664250080,-1072.31,0.00019506,2]
[365425394,1749664250089,-1238.008863,0.00019506,2]
[365425395,1749664250098,-490.0,0.00019506,2]
[365425396,1749664250108,-490.0,0.00019506,2]
[365425397,1749664250118,-490.0,0.00019506,2]
[365425398,1749664250127,-490.0,0.00019506,2]
[365425399,1749664250136,-490.0,0.00019506,2]
[365425400,1749664250146,-591.66,0.00019506,2]
[365425401,1749664250155,-2882.68,0.00019506,2]
[365425402,1749664250165,-490.0,0.00019506,2]
[365425403,1749664250174,-490.0,0.00019506,2]
[365425404,1749664250183,-1592.46,0.00019506,2]
[365425405,1749664250192,-490.0,0.00019506,2]
[365425406,1749664250201,-772.88,0.00019506,2]
[365425407,1749664250211,-490.0,0.00019506,2]
[365425408,1749664250220,-490.0,0.00019506,2]
[365425409,1749664250229,-628.18,0.00019506,2]
[365425410,1749664250238,-1396.99,0.00019506,2]
[365425411,1749664250248,-1056.26,0.00019506,2]
[365425412,1749664250257,-824.41,0.00019506,2]
[365425413,1749664250267,-851.75,0.00019506,2]
[365425414,1749664250277,-490.0,0.00019506,2]
[365425415,1749664250287,-1036.29,0.00019506,2]
[365425416,1749664250297,-490.0,0.00019506,2]
[365425417,1749664250306,-621.51,0.00019506,2]
[365425418,1749664250315,-982.57,0.00019506,2]
[365425419,1749664250325,-310.69,0.00019506,2]
[365425420,1749664250334,-490.0,0.00019506,2]
[365425421,1749664250344,-490.0,0.00019506,2]
[365425422,1749664250353,-490.0,0.00019506,2]
[365425423,1749664250362,-490.0,0.00019506,2]
[365425424,1749664250372,-490.0,0.00019506,2]
[365425425,1749664250382,-1715.86,0.00019506,2]
[365425426,1749664250391,-490.0,0.00019506,2]
[365425427,1749664250401,-490.0,0.00019506,2]
[365425428,1749664250411,-490.0,0.00019506,2]
[365425429,1749664250420,-689.63,0.00019506,2]
[365425430,1749664250429,-490.0,0.00019506,2]
[365425431,1749664250438,-490.0,0.00019506,2]
[365425432,1749664250447,-865.21,0.00019506,2]
[365425433,1749664250455,-1292.01,0.00019506,2]
[365425434,1749664250464,-490.0,0.00019506,2]
[365425435,1749664250473,-490.0,0.00019506,2]
[365425436,1749664250481,-538.16,0.00019506,2]
[365425437,1749664250490,-490.0,0.00019506,2]
[365425438,1749664250501,-198.60018637,0.00019506,2]
[365425439,1749664250511,-490.0,0.00019506,2]
[365425440,1749664250522,-581.41,0.00019506,2]
[365425441,1749664250533,-538.04,0.00019506,2]
[365425442,1749664250542,-630.31,0.00019506,2]
[365425443,1749664250551,-490.0,0.00019506,2]
[365425444,1749664250562,-619.62,0.00019506,2]
[365425445,1749664250571,-490.0,0.00019506,2]
[365425446,1749664250581,-545.79,0.00019506,2]
[365425447,1749664250591,-5455.39,0.00019506,2]
[365425448,1749664250601,-490.0,0.00019506,2]
[365425449,1749664250611,-578.51,0.00019506,2]
[365425450,1749664250620,-490.0,0.00019506,2]
[365425451,1749664250630,-869.31,0.00019506,2]
[365425452,1749664250639,-7091.69,0.00019506,2]
[365425453,1749664250649,-1578.74,0.00019506,2]
[365425454,1749664250658,-490.0,0.00019506,2]
[365425455,1749664250667,-490.0,0.00019506,2]
[365425456,1749664250677,-490.0,0.00019506,2]
[365425457,1749664250686,-490.0,0.00019506,2]
[365425458,1749664250696,-819.06,0.00019506,2]
[365425459,1749664250706,-519.97,0.00019506,2]
[365425460,1749664250715,-490.0,0.00019506,2]
[365425461,1749664250725,-1328.38,0.00019506,2]
[365425462,1749664250735,-1017.44,0.00019506,2]
[365425463,1749664250744,-490.0,0.00019506,2]
[365425464,1749664250755,-490.0,0.00019506,2]
[365425465,1749664250765,-638.23,0.00019506,2]
[365425466,1749664250775,-490.0,0.00019506,2]
[365425467,1749664250784,-490.0,0.00019506,2]
[365425468,1749664250793,-853.47,0.00019506,2]
[365425469,1749664250803,-1459.54,0.00019506,2]
[365425470,1749664250812,-509.78,0.00019506,2]
[365425471,1749664250821,-956.22,0.00019506,2]
[365425472,1749664250830,-1668.79,0.00019506,2]
[365425473,1749664250839,-563.11,0.00019506,2]
[365425474,1749664250849,-768.89,0.00019506,2]
[365425475,1749664250858,-490.0,0.00019506,2]
[365425476,1749664250867,-556.57,0.00019506,2]
[365425477,1749664250876,-782.98,0.00019506,2]
[365425478,1749664250885,-490.0,0.00019506,2]
[365425479,1749664250895,-490.0,0.00019506,2]
[365425480,1749664250904,-490.0,0.00019506,2]
[365425481,1749664250914,-490.0,0.00019506,2]
[365425482,1749664250923,-3243.25,0.00019506,2]
[365425483,1749664250933,-490.0,0.00019506,2]
[365425484,1749664250942,-534.84,0.00019506,2]
[365425485,1749664250950,-490.0,0.00019506,2]
[365425486,1749664250959,-490.0,0.00019506,2]
[365425487,1749664250969,-622.95,0.00019506,2]
[365425488,1749664250978,-490.0,0.00019506,2]
[365425489,1749664250987,-490.0,0.00019506,2]
[365425490,1749664250996,-836.19,0.00019506,2]
[365425491,1749664251006,-1251.96,0.00019506,2]
[365425492,1749664251014,-779.51,0.00019506,2]
[365425493,1749664251024,-2676.7,0.00019506,2]
[365425494,1749664251033,-490.0,0.00019506,2]
[365425495,1749664251042,-536.75,0.00019506,2]
[365425496,1749664251051,-490.0,0.00019506,2]
[365425497,1749664251060,-1108.13,0.00019506,2]
[365425498,1749664251069,-711.18,0.00019506,2]
[365425499,1749664251078,-490.0,0.00019506,2]
[365425500,1749664251087,-490.0,0.00019506,2]
[365425501,1749664251096,-1699.0,0.00019506,2]
[365425502,1749664251105,-490.0,0.00019506,2]
[365425503,1749664251115,-490.0,0.00019506,2]
[365425504,1749664251124,-757.06,0.00019506,2]
[365425505,1749664251134,-490.0,0.00019506,2]
[365425506,1749664251143,-609.19,0.00019506,2]
[365425507,1749664251152,-490.0,0.00019506,2]
[365425508,1749664251162,-490.0,0.00019506,2]
[365425509,1749664251171,-2133.29,0.00019506,2]
[365425510,1749664251181,-490.0,0.00019506,2]
[365425511,1749664251190,-490.0,0.00019506,2]
[365425512,1749664251199,-557.38,0.00019506,2]
[365425513,1749664251208,-490.0,0.00019506,2]
[365425514,1749664251218,-490.0,0.00019506,2]
[365425515,1749664251227,-480.0,0.00019506,2]
[365425516,1749664251236,-490.0,0.00019506,2]
[365425517,1749664251245,-490.0,0.00019506,2]
[365425518,1749664251255,-490.0,0.00019506,2]
[365425519,1749664251265,-490.0,0.00019506,2]
[365425520,1749664251274,-490.0,0.00019506,2]
[365425521,1749664251283,-892.62,0.00019506,2]